lending/lending_fUSD_20240410
["ID","MTS","AMOUNT","RATE_DAILY","PERIOD"]
[322071176,1712741446168,-856.91,0.00024107,2]
[322071178,1712741446178,-619.33979265,0.00024107,2]
[322071180,1712741446189,-500.0,0.00024107,2]
[322071182,1712741446199,-500.0,0.00024107,2]
[322071184,1712741446211,-546.74,0.00024107,2]
[322071186,1712741446222,-458.85041534,0.00024107,2]
[322071189,1712741446232,-500.0,0.00024107,2]
[322071191,1712741446243,-150.0,0.000242,2]
[322071193,1712741446254,-682.0,0.00024219,2]
[322071195,1712741446266,-154.56262454,0.00024242,2]
[322071197,1712741446277,-500.0,0.00024381,2]
[322071200,1712741446287,-500.0,0.00024381,2]
[322071202,1712741446298,-1394.2,0.00024381,2]
[322071204,1712741446308,-500.0,0.00024381,2]
[322071206,1712741446318,-2169.83,0.00024381,2]
[322071208,1712741446329,-500.0,0.00024381,2]
[322071210,1712741446341,-318.01126259,0.00024381,2]
[322071213,1712741446358,-538.89873741,0.00024381,2]
[322071215,1712741446369,-500.0,0.00024381,2]
[322071218,1712741446381,-500.0,0.00024381,2]
[322071220,1712741446392,-546.74,0.00024381,2]
[322071222,1712741446402,-500.0,0.00024381,2]
[322071224,1712741446411,-600.0,0.00024449,2]
[322071226,1712741446422,-500.0,0.00024655,2]
[322071228,1712741446431,-500.0,0.00024655,2]
[322071230,1712741446445,-1394.2,0.00024655,2]
[322071232,1712741446455,-432.16441355,0.00024655,2]
[322071234,1712741446466,-346.79145915,0.00024655,2]
[322071237,1712741446482,-1383.28,0.00024655,2]
[322071239,1712741446498,-439.75854085,0.00024655,2]
[322071241,1712741446508,-616.00618347,0.00024655,2]
[322071244,1712741446519,-23.10696897,0.00024655,2]
[322071246,1712741446533,-833.80303103,0.00024655,2]
[322071249,1712741446544,-500.0,0.00024655,2]
[322071253,1712741446556,-500.0,0.00024655,2]
[322071257,1712741446566,-247.54134681,0.00024655,2]
[322071260,1712741446579,-299.19865319,0.00024655,2]
[322071263,1712741446588,-137.29244873,0.00024655,2]
[322071270,1712741446645,-362.70755127,0.00024655,2]
[322071271,1712741446656,-500.0,0.00024658,2]
[322071272,1712741446667,-224.71,0.00024658,2]
[322071273,1712741446676,-411.0,0.00024689,2]
[322071274,1712741446686,-3189.88327932,0.0002469,5]
[322071275,1712741446701,-2934.35,0.0002469,5]
[322071276,1712741446715,-2997.78900002,0.0002469,5]
[322071277,1712741446727,-4671.68698192,0.0002469,5]
[322071278,1712741446742,-2990.95717972,0.0002469,5]
[322071279,1712741446757,-2315.77486189,0.0002469,5]
[322071280,1712741446770,-1537.66626924,0.0002469,5]
[322071281,1712741446783,-128451.04938984,0.0002469,5]
[322071282,1712741446793,-150.0,0.000247,2]
[322071283,1712741446802,-154.56262454,0.00024785,2]
[322071284,1712741446813,-2223.73711434,0.000248,2]
[322071285,1712741446823,-1011.0,0.000249,2]
[322071286,1712741446833,-155.07293386,0.00024929,2]
[322071287,1712741446843,-1394.2,0.00024929,2]
[322071288,1712741446855,-2169.83,0.00024929,2]
[322071289,1712741446866,-856.91,0.00024929,2]
[322071290,1712741446876,-500.0,0.00024929,2]
[322071291,1712741446887,-500.0,0.00024929,2]
[322071292,1712741446897,-546.74,0.00024929,2]
[322071293,1712741446907,-603.56559038,0.00024929,2]
[322071294,1712741446917,-5545.06157159,0.00024931,2]
[322071295,1712741446927,-500.0,0.00024997,2]
[322071296,1712741446937,-2300.0,0.00024997,2]
[322071297,1712741446947,-500.0,0.00024997,2]
[322071298,1712741446957,-510.77293156,0.00024997,2]
[322071299,1712741446967,-1361.64470333,0.00025,2]
[322071300,1712741446977,-2603.52703539,0.00025,2]
[322071301,1712741446987,-207.46633642,0.00025,2]
[322071302,1712741446998,-350.0,0.00025,3]
[322071303,1712741447009,-200.0,0.00025,7]
[322071304,1712741447019,-500.0,0.00025,2]
[322071305,1712741447029,-500.0,0.00025009,2]
[322071306,1712741447039,-6733.971477,0.000251,2]
[322071307,1712741447050,-206.98143139,0.00025195,2]
[322071308,1712741447060,-150.0,0.000252,2]
[322071309,1712741447070,-394.0,0.000252,2]
[322071310,1712741447080,-150.0,0.000252,2]
[322071311,1712741447090,-1394.2,0.00025203,2]
[322071312,1712741447101,-2169.83,0.00025203,2]
[322071313,1712741447111,-856.91,0.00025203,2]
[322071314,1712741447122,-500.0,0.00025203,2]
[322071315,1712741447132,-500.0,0.00025203,2]
[322071316,1712741447144,-546.74,0.00025203,2]
[322071317,1712741447154,-233261.3618635,0.00025205,2]
[322071318,1712741447164,-2651.85140861,0.00025211,2]
[322071319,1712741447174,-154.56262454,0.00025327,2]
[322071320,1712741447184,-6198.1331612,0.00025344,2]
[322071321,1712741447194,-682.0,0.00025452,2]
[322071322,1712741447204,-1394.2,0.00025477,2]
[322071323,1712741447214,-2169.83,0.00025477,2]
[322071324,1712741447225,-856.91,0.00025477,2]
[322071325,1712741447235,-500.0,0.00025477,2]
[322071326,1712741447245,-500.0,0.00025477,2]
[322071327,1712741447255,-546.74,0.00025477,2]
[322071328,1712741447267,-150.0,0.000255,2]
[322071329,1712741447277,-600.0,0.00025545,2]
[322071330,1712741447286,-1000.0,0.00025552,2]
[322071331,1712741447296,-152.0,0.00025556,11]
[322071332,1712741447307,-1394.2,0.00025751,2]
[322071333,1712741447318,-2169.83,0.00025751,2]
[322071334,1712741447328,-856.91,0.00025751,2]
[322071335,1712741447338,-500.0,0.00025751,2]
[322071336,1712741447348,-511.14168172,0.00025751,2]
[322071337,1712741447358,-546.74,0.00025751,2]
[322071338,1712741447367,-706.29344,0.0002579,2]
[322071339,1712741447377,-154.56262454,0.0002587,2]
[322071340,1712741447388,-158.14981821,0.00025888,2]
[322071341,1712741447398,-152.0,0.00025941,12]
[322071342,1712741447408,-394.28680311,0.00025991,2]
[322071343,1712741447417,-235.45279864,0.00025999,2]
[322071344,1712741447427,-353.55620397,0.00026,2]
[322071345,1712741447438,-78059.27463238,0.00026,2]
[322071346,1712741447450,-1890.03296988,0.00026,10]
[322071347,1712741447460,-155.0,0.00026,2]
[322071348,1712741447470,-2500.0,0.00026,2]
[322071349,1712741447480,-150.0,0.00026,2]
[322071350,1712741447490,-1394.2,0.00026025,2]
[322071351,1712741447500,-2169.83,0.00026025,2]
[322071352,1712741447510,-856.91,0.00026025,2]
[322071353,1712741447521,-500.0,0.00026025,2]
[322071354,1712741447531,-546.74,0.00026025,2]
[322071355,1712741447541,-154.98939764,0.00026029,2]
[322071356,1712741447551,-362.13214,0.00026037,2]
[322071357,1712741447561,-213.1,0.00026046,2]
[322071358,1712741447571,-500.0,0.00026093,2]
[322071359,1712741447581,-2300.0,0.00026093,2]
[322071360,1712741447591,-500.0,0.00026093,2]
[322071361,1712741447601,-219.66580927,0.00026108,2]
[322071362,1712741447611,-394.28680311,0.00026117,2]
[322071363,1712741447620,-153.88972213,0.00026137,2]
[322071364,1712741447630,-362.13214,0.00026187,2]
[322071365,1712741447640,-150.0,0.000262,2]
[322071366,1712741447650,-219.66580927,0.000262,2]
[322071367,1712741447660,-636.2482586,0.00026208,2]
[322071368,1712741447670,-219.66580927,0.00026219,2]
[322071369,1712741447680,-188.9439878,0.00026291,2]
[322071370,1712741447690,-1394.2,0.00026299,2]
[322071371,1712741447700,-2169.83,0.00026299,2]
[322071372,1712741447710,-856.91,0.00026299,2]
[322071373,1712741447720,-224.00771473,0.00026299,2]
[322071374,1712741447730,-546.74,0.00026299,2]
[322071375,1712741447741,-152.0,0.00026325,13]
[322071376,1712741447751,-152.32027783,0.00026365,2]
[322071377,1712741447763,-158.22335403,0.00026385,2]
[322071378,1712741447776,-154.56262454,0.00026412,2]
[322071379,1712741447787,-171.85998982,0.00026434,2]
[322071380,1712741447797,-219.66580927,0.00026451,2]
[322071381,1712741447808,-158.58774654,0.00026477,2]
[322071382,1712741447819,-166.81608172,0.00026498,2]
[322071383,1712741447829,-150.0,0.000265,2]
[322071384,1712741447839,-394.28680311,0.00026513,2]
[322071385,1712741447850,-219.66580927,0.00026515,2]
[322071386,1712741447860,-1394.2,0.00026573,2]
[322071387,1712741447870,-2169.83,0.00026573,2]
[322071388,1712741447881,-856.91,0.00026573,2]
[322071389,1712741447892,-546.74,0.00026573,2]
[322071390,1712741447902,-600.0,0.00026641,2]
[322071391,1712741447912,-153.88972213,0.00026681,2]
[322071392,1712741447925,-682.0,0.00026685,2]
[322071393,1712741447935,-443.3120687,0.00026687,2]
[322071394,1712741447946,-154.98939764,0.0002671,2]
[322071395,1712741447957,-152.0,0.0002671,14]
[322071396,1712741447968,-219.66580927,0.00026714,2]
[322071397,1712741447978,-154.49579319,0.00026725,2]
[322071398,1712741447989,-158.22335403,0.00026784,2]
[322071399,1712741447999,-1394.32533328,0.00026847,2]
[322071400,1712741448010,-2169.8701072,0.00026847,2]
[322071401,1712741448019,-857.08627628,0.00026847,2]
[322071402,1712741448028,-546.8175,0.00026847,2]
[322071403,1712741448038,-158.37092532,0.00026885,2]
[322071404,1712741448047,-6923.0906762,0.00026925,2]
[322071405,1712741448056,-154.56262454,0.00026955,2]
[322071406,1712741448067,-2644.48398999,0.00026991,2]
[322071407,1712741448076,-154.49579319,0.00026994,2]
[322071408,1712741448086,-1000.0,0.00027,2]
[322071409,1712741448097,-155.0,0.00027,4]
[322071410,1712741448109,-169.19497887,0.00027,2]
[322071411,1712741448120,-172.5922328,0.00027,2]
[322071412,1712741448129,-400.0,0.00027,3]
[322071413,1712741448139,-150.0,0.00027,2]
[322071414,1712741448148,-152.32027783,0.00027011,2]
[322071415,1712741448157,-152.0,0.00027095,15]
[322071416,1712741448168,-188.9439878,0.00027114,2]
[322071417,1712741448178,-1013.52575687,0.0002713,2]
[322071418,1712741448188,-219.66580927,0.00027152,2]
[322071419,1712741448198,-193.0,0.00027158,2]
[322071420,1712741448208,-161.80937703,0.00027169,2]
[322071421,1712741448217,-500.0,0.00027189,2]
[322071422,1712741448226,-2300.0,0.00027189,2]
[322071423,1712741448235,-500.0,0.00027189,2]
[322071424,1712741448244,-150.0,0.000272,2]
[322071425,1712741448254,-154.99471212,0.000272,2]
[322071426,1712741448265,-1821.3356163,0.00027205,2]
[322071427,1712741448274,-362.13214,0.00027224,2]
[322071428,1712741448285,-362.13214,0.00027242,2]
[322071429,1712741448295,-394.28680311,0.00027262,2]
[322071430,1712741448306,-158.58774654,0.00027278,2]
[322071431,1712741448314,-568.48372422,0.00027291,2]
[322071432,1712741448324,-636.2482586,0.00027299,2]
[322071433,1712741448333,-1000.0,0.00027397,2]
[322071434,1712741448629,-1000.0,0.00027397,2]
[322071435,1712741448648,-248.35278002,0.00027397,2]
[322071436,1712741448664,-500.0,0.00027397,2]
[322071437,1712741448675,-500.0,0.00027397,2]
[322071438,1712741448684,-500.0,0.00027397,2]
[322071439,1712741448694,-500.0,0.00027397,2]
[322071440,1712741448703,-500.0,0.00027397,2]
[322071441,1712741448715,-500.0,0.00027397,2]
[322071442,1712741448724,-500.0,0.00027397,2]
[322071443,1712741448736,-500.0,0.00027397,2]
[322071444,1712741448747,-500.0,0.00027397,2]
[322071445,1712741448756,-500.0,0.00027397,2]
[322071446,1712741448767,-401.26776636,0.00027397,2]
[322071447,1712741448778,-711.57,0.00027397,2]
[322071448,1712741448787,-1000.0,0.00027397,2]
[322071449,1712741448796,-224.71,0.00027397,2]
[322071450,1712741448805,-300.0,0.00027397,10]
[322071451,1712741448815,-300.0,0.00027397,10]
[322071452,1712741448825,-300.0,0.00027397,10]
[322071453,1712741448836,-300.0,0.00027397,10]
[322071454,1712741448846,-300.0,0.00027397,10]
[322071455,1712741448855,-300.0,0.00027397,10]
[322071456,1712741448865,-300.0,0.00027397,10]
[322071457,1712741448875,-300.0,0.00027397,10]
[322071458,1712741448884,-300.0,0.00027397,10]
[322071459,1712741448894,-432.42763653,0.000274,2]
[322071460,1712741448903,-152.32027783,0.00027407,2]
[322071461,1712741448912,-568.48372422,0.00027449,2]
[322071462,1712741448922,-154.49579319,0.0002748,2]
[322071463,1712741448931,-152.0,0.0002748,16]
[322071464,1712741448941,-154.56262454,0.00027497,2]
[322071465,1712741448951,-188.12326352,0.000275,2]
[322071466,1712741448960,-682.03091199,0.000275,2]
[322071467,1712741448970,-1020.55,0.000275,2]
[322071468,1712741448979,-150.0,0.000275,2]
[322071469,1712741448989,-219.66580927,0.00027502,2]
[322071470,1712741448999,-166.66666668,0.00027513,2]
[322071471,1712741449008,-568.48372422,0.00027524,2]
[322071472,1712741449019,-636.2482586,0.00027593,2]
[322071473,1712741449028,-153.99568916,0.0002761,2]
[322071474,1712741449038,-154.98939764,0.00027684,2]
[322071475,1712741449048,-636.2482586,0.00027719,2]
[322071476,1712741449057,-219.66580927,0.00027726,2]
[322071477,1712741449068,-600.0,0.00027737,2]
[322071478,1712741449078,-157.18906211,0.00027759,2]
[322071479,1712741449088,-4741.684523,0.000278,2]
[322071480,1712741449097,-182.68,0.00027826,2]
[322071481,1712741449107,-154.49579319,0.00027864,2]
[322071482,1712741449116,-152.0,0.00027865,17]
[322071483,1712741449125,-363.42664459,0.00027874,2]
[322071484,1712741449134,-1000.0,0.00027875,2]
[322071485,1712741449143,-682.0,0.00027918,2]
[322071486,1712741449153,-394.28680311,0.00027938,2]
[322071487,1712741449162,-158.58774654,0.00027965,2]
[322071488,1712741449171,-12373.23,0.00028,2]
[322071489,1712741449180,-452.999996,0.00028,2]
[322071490,1712741449189,-551.61427457,0.00028,2]
[322071491,1712741449197,-150.0,0.00028,2]
[322071492,1712741449206,-974.60616736,0.00028022,2]
[322071493,1712741449215,-154.56262454,0.0002804,2]
[322071494,1712741449225,-362.13214,0.00028067,2]
[322071495,1712741449234,-154.98939764,0.00028128,2]
[322071496,1712741449243,-158.22335403,0.00028135,2]
[322071497,1712741449252,-289.2,0.000282,2]
[322071498,1712741449263,-150.83,0.00028237,2]
[322071499,1712741449272,-150.0,0.00028237,2]
[322071500,1712741449281,-150.0,0.00028237,2]
[322071501,1712741449290,-150.0,0.00028237,2]
[322071502,1712741449299,-150.0,0.00028237,2]
[322071503,1712741449307,-150.0,0.00028237,2]
[322071504,1712741449316,-150.0,0.00028237,2]
[322071505,1712741449325,-150.0,0.00028237,2]
[322071506,1712741449334,-150.0,0.00028237,2]
[322071507,1712741449344,-150.0,0.00028237,2]
[322071508,1712741449353,-150.0,0.00028237,2]
[322071509,1712741449362,-150.0,0.00028237,2]
[322071510,1712741449370,-151.55,0.00028237,2]
[322071511,1712741449379,-152.0,0.0002825,18]
[322071512,1712741449389,-500.0,0.00028285,2]
[322071513,1712741449397,-2300.0,0.00028285,2]
[322071514,1712741449406,-482.4950078,0.00028285,2]
[322071515,1712741449416,-706.29345,0.0002829,2]
[322071516,1712741449425,-219.66580927,0.00028319,2]
[322071517,1712741449434,-152.32027783,0.00028328,2]
[322071518,1712741449447,-158.58774654,0.00028333,2]
[322071519,1712741449456,-219.66580927,0.00028337,2]
[322071520,1712741449466,-188.9439878,0.00028433,2]
[322071521,1712741449475,-150.95912377,0.00028441,2]
[322071522,1712741449485,-636.2482586,0.00028472,2]
[322071523,1712741449494,-150.0,0.00028492,2]
[322071524,1712741449503,-150.0,0.000285,2]
[322071525,1712741449514,-154.49579319,0.00028534,2]
[322071526,1712741449526,-153.99568916,0.0002855,2]
[322071527,1712741449535,-153.99568916,0.00028606,2]
[322071528,1712741449544,-188.9439878,0.00028609,2]
[322071529,1712741449554,-443.3120687,0.00028632,2]
[322071530,1712741449563,-152.0,0.00028635,19]
[322071531,1712741449572,-443.3120687,0.00028647,2]
[322071532,1712741449582,-219.66580927,0.00028652,2]
[322071533,1712741449590,-362.13214,0.00028682,2]
[322071534,1712741449599,-163.4681833,0.00028707,2]
[322071535,1712741449609,-176.77872531,0.00028746,2]
[322071536,1712741449618,-394.28680311,0.00028784,2]
[322071537,1712741449627,-964.45,0.000288,13]
[322071538,1712741449636,-1020.55,0.000288,2]
[322071539,1712741449645,-188.9439878,0.00028814,2]
[322071540,1712741449654,-895.68,0.0002883,12]
[322071541,1712741449664,-600.0,0.00028833,2]
[322071542,1712741449673,-158.58774654,0.00028847,2]
[322071543,1712741449682,-150.0,0.0002886,2]
[322071544,1712741449691,-443.3120687,0.00028869,2]
[322071545,1712741449701,-5044.66297034,0.0002888,2]
[322071546,1712741449710,-150.0,0.00028887,2]
[322071547,1712741449718,-150.0,0.00028912,2]
[322071548,1712741449728,-394.28680311,0.00028924,2]
[322071549,1712741449737,-150.0,0.00028957,2]
[322071550,1712741449746,-150.0,0.00028968,2]
[322071551,1712741449755,-300.0,0.00028999,10]
[322071552,1712741449765,-300.0,0.00028999,10]
[322071553,1712741449774,-300.0,0.00028999,10]
[322071554,1712741449783,-300.0,0.00028999,10]
[322071555,1712741449792,-300.0,0.00028999,10]
[322071556,1712741449801,-300.0,0.00028999,10]
[322071557,1712741449811,-300.0,0.00028999,10]
[322071558,1712741449820,-300.0,0.00028999,10]
[322071559,1712741449829,-561.36323645,0.00029,2]
[322071560,1712741449839,-15535.32908313,0.00029,2]
[322071561,1712741449849,-770.05,0.00029,2]
[322071562,1712741449858,-988.5,0.00029,13]
[322071563,1712741449866,-1010.0,0.00029,2]
[322071564,1712741449875,-2000.0,0.00029,2]
[322071565,1712741449885,-8049.17396236,0.00029,4]
[322071566,1712741449894,-450.0,0.00029,3]
[322071567,1712741449903,-150.0,0.00029,2]
[322071568,1712741449912,-217.93,0.00029,2]
[322071569,1712741449922,-217.93,0.00029,2]
[322071570,1712741449931,-217.93,0.00029,2]
[322071571,1712741449941,-217.93,0.00029,2]
[322071572,1712741449950,-217.93,0.00029,2]
[322071573,1712741449959,-217.93,0.00029,2]
[322071574,1712741449968,-217.93,0.00029,2]
[322071575,1712741449981,-217.93,0.00029,2]
[322071576,1712741449990,-217.93,0.00029,2]
[322071577,1712741450000,-217.93,0.00029,2]
[322071578,1712741450010,-217.93,0.00029,2]
[322071579,1712741450019,-217.93,0.00029,2]
[322071580,1712741450029,-217.93,0.00029,2]
[322071581,1712741450038,-217.93,0.00029,2]
[322071582,1712741450047,-217.93,0.00029,2]
[322071583,1712741450057,-217.93,0.00029,2]
[322071584,1712741450067,-217.93,0.00029,2]
[322071585,1712741450076,-217.93,0.00029,2]
[322071586,1712741450086,-217.93,0.00029,2]
[322071587,1712741450096,-217.93,0.00029,2]
[322071588,1712741450105,-161.80937703,0.00029005,2]
[322071589,1712741450115,-151.0,0.00029013,2]
[322071590,1712741450125,-443.3120687,0.00029015,2]
[322071591,1712741450134,-152.0,0.00029019,20]
[322071592,1712741450144,-362.13214,0.00029022,2]
[322071593,1712741450153,-219.66580927,0.00029035,2]
[322071594,1712741450163,-362.13214,0.00029043,2]
[322071595,1712741450172,-150.0,0.00029052,2]
[322071596,1712741450182,-150.0,0.00029071,2]
[322071597,1712741450191,-150.0,0.0002908,2]
[322071598,1712741450201,-158.22335403,0.00029089,2]
[322071599,1712741450210,-682.0,0.00029151,2]
[322071600,1712741450219,-362.13214,0.00029163,2]
[322071601,1712741450230,-168.8816447,0.0002924,2]
[322071602,1712741450239,-154.98939764,0.00029242,2]
[322071603,1712741450249,-219.66580927,0.00029291,2]
[322071604,1712741450258,-636.2482586,0.00029299,2]
[322071605,1712741450270,-150.0,0.00029302,2]
[322071606,1712741450279,-150.0,0.00029307,2]
[322071607,1712741450289,-150.0,0.00029307,2]
[322071608,1712741450298,-394.28680311,0.00029311,2]
[322071609,1712741450308,-150.0,0.00029321,2]
[322071610,1712741450316,-150.0,0.00029324,2]
[322071611,1712741450336,-154.98939764,0.00029347,2]
[322071612,1712741450346,-500.0,0.00029381,2]
[322071613,1712741450356,-2300.0,0.00029381,2]
[322071614,1712741450365,-636.2482586,0.00029397,2]
[322071615,1712741450377,-152.0,0.00029404,21]
[322071616,1712741450386,-211.0,0.0002943,2]
[322071617,1712741450396,-568.48372422,0.00029441,2]
[322071618,1712741450405,-362.13214,0.00029464,2]
[322071619,1712741450415,-441.68798527,0.000295,3]
[322071620,1712741450424,-150.0,0.000295,2]
[322071621,1712741450435,-150.0,0.00029501,2]
[322071622,1712741450448,-300.0,0.00029506,2]
[322071623,1712741450457,-150.0,0.00029537,2]
[322071624,1712741450466,-568.48372422,0.00029554,2]
[322071625,1712741450476,-362.13214,0.00029637,2]
[322071626,1712741450486,-188.9439878,0.0002965,2]
[322071627,1712741450496,-154.98939764,0.0002967,2]
[322071628,1712741450505,-150.0,0.00029672,2]
[322071629,1712741450515,-568.48372422,0.00029681,2]
[322071630,1712741450525,-300.0,0.00029699,10]
[322071631,1712741450535,-300.0,0.00029699,10]
[322071632,1712741450545,-300.0,0.00029699,10]
[322071633,1712741450554,-300.0,0.00029699,10]
[322071634,1712741450563,-300.0,0.00029699,10]
[322071635,1712741450574,-300.0,0.00029699,10]
[322071636,1712741450583,-300.0,0.00029699,10]
[322071637,1712741450594,-302.71338657,0.00029699,10]
[322071638,1712741450603,-250000.0,0.000297,2]
[322071639,1712741450613,-394.28680311,0.0002971,2]
[322071640,1712741450623,-188.9439878,0.00029732,2]
[322071641,1712741450634,-150.0,0.00029775,2]
[322071642,1712741450643,-152.0,0.00029789,22]
[322071643,1712741450652,-300.0,0.00029799,10]
[322071644,1712741450662,-300.0,0.00029799,10]
[322071645,1712741450672,-300.0,0.00029799,10]
[322071646,1712741450681,-300.0,0.00029799,10]
[322071647,1712741450690,-300.0,0.00029799,10]
[322071648,1712741450700,-300.0,0.00029799,10]
[322071649,1712741450710,-542.16999502,0.00029799,10]
[322071650,1712741450720,-200000.0,0.000298,2]
[322071651,1712741450730,-466.41,0.000298,2]
[322071652,1712741450739,-1020.55,0.000298,2]
[322071653,1712741450750,-150.0,0.00029805,2]
[322071654,1712741450759,-154.98939764,0.00029806,2]
[322071655,1712741450770,-150.0,0.00029817,2]
[322071656,1712741450780,-150.0,0.00029831,2]
[322071657,1712741450789,-394.28680311,0.00029866,2]
[322071658,1712741450800,-158.37092532,0.00029877,2]
[322071659,1712741450809,-150.0,0.00029879,2]
[322071660,1712741450818,-150.0,0.00029886,2]
[322071661,1712741450828,-150.0,0.00029895,2]
[322071662,1712741450837,-536.13911145,0.000299,2]
[322071663,1712741450847,-415.08729867,0.000299,2]
[322071664,1712741450857,-1963.37819585,0.000299,2]
[322071665,1712741450867,-256.75222159,0.000299,2]
[322071666,1712741450877,-209.86645799,0.000299,2]
[322071667,1712741450886,-154.98939764,0.0002991,2]
[322071668,1712741450895,-161.80937703,0.00029925,2]
[322071669,1712741450904,-600.0,0.00029929,2]
[322071670,1712741450914,-153.88972213,0.00029959,2]
[322071671,1712741450924,-300.0,0.00029999,10]
[322071672,1712741450932,-300.0,0.00029999,10]
[322071673,1712741450942,-300.0,0.00029999,10]
[322071674,1712741450951,-300.0,0.00029999,10]
[322071675,1712741450961,-300.0,0.00029999,10]
[322071676,1712741450971,-300.0,0.00029999,10]
[322071677,1712741450980,-173.81137151,0.00029999,2]
[322071678,1712741450990,-500.0,0.00029999,2]
[322071679,1712741451000,-444.19174776,0.00029999,2]
[322071680,1712741451009,-345.38157789,0.00029999,2]
[322071681,1712741451020,-100000.0,0.0003,10]
[322071682,1712741451029,-156.49551777,0.0003,4]
[322071683,1712741451039,-455.19463816,0.0003,2]
[322071684,1712741451049,-1042.95596309,0.0003,4]
[322071685,1712741451058,-33105.64364336,0.0003,4]
[322071686,1712741451068,-40666.75824738,0.0003,4]
[322071687,1712741451078,-374.61923838,0.0003,2]
[322071688,1712741451088,-346.78248489,0.0003,2]
[322071689,1712741451098,-168.30302752,0.0003,2]
[322071690,1712741451107,-710.54543358,0.0003,2]
[322071691,1712741451117,-999.51924573,0.0003,2]
[322071692,1712741451126,-150.0,0.0003,2]
[322071693,1712741451136,-571.90314605,0.0003,7]
[322071694,1712741451145,-253.4493913,0.0003,10]
[322071695,1712741451154,-500.0,0.0003,7]
[322071696,1712741451164,-500.0,0.0003,7]
[322071697,1712741451173,-500.0,0.0003,7]
[322071698,1712741451182,-500.0,0.0003,7]
[322071699,1712741451192,-500.0,0.0003,7]
[322071700,1712741451201,-500.0,0.0003,7]
[322071701,1712741451210,-500.0,0.0003,7]
[322071702,1712741451220,-500.0,0.0003,7]
[322071703,1712741451229,-652.92,0.0003,7]
[322071704,1712741451239,-158.0,0.0003,2]
[322071705,1712741451248,-150.0,0.0003,2]
[322071706,1712741451257,-611.88484923,0.0003,2]
[322071707,1712741451268,-1190.39937736,0.0003,2]
[322071708,1712741451277,-10000.0,0.0003,2]
[322071709,1712741451287,-2021.0,0.0003,2]
[322071710,1712741451296,-408.97217716,0.0003,4]
[322071711,1712741451306,-197.70556809,0.0003,4]
[322071712,1712741451315,-3003.24591188,0.0003,2]
[322071713,1712741451324,-915.2561531,0.0003,3]
[322071714,1712741451334,-552.25,0.0003,2]
[322071715,1712741451344,-681.56264361,0.0003,4]
[322071716,1712741451353,-9913.04987373,0.0003,2]
[322071717,1712741451362,-348.739716,0.0003,2]
[322071718,1712741451372,-150.0,0.0003,2]
[322071719,1712741451382,-206.0,0.0003,2]
[322071720,1712741451391,-150.0,0.00030007,2]
[322071721,1712741451401,-153.88972213,0.00030016,7]
[322071722,1712741451410,-150.0,0.00030026,2]
[322071723,1712741451419,-150.19813992,0.00030027,30]
[322071724,1712741451428,-2644.48398999,0.00030036,2]
[322071725,1712741451438,-154.49579319,0.00030038,7]
[322071726,1712741451449,-150.0,0.0003004,2]
[322071727,1712741451459,-150.0,0.00030043,2]
[322071728,1712741451468,-152.32027783,0.00030045,7]
[322071729,1712741451478,-158.58774654,0.00030052,7]
[322071730,1712741451489,-150.0,0.00030076,2]
[322071731,1712741451498,-443.3120687,0.00030099,7]